bitfinex-derivatives/quotes_ETHF0:USTF0_20251213
["timestamp","ask_amount","ask_price","bid_price","bid_amount"]
[1765624335889,1.4746,3127.7,3127.6,0.89295]
[1765624336188,1.4746,3127.7,3127.6,0.15985]
[1765624343095,1.4746,3127.7,3127.6,0.86185]
[1765624343395,1.4746,3127.7,3127.6,1.57195]
[1765624344693,0.00228365,3127.9,3127.6,0.86995]
[1765624344892,0.72858365,3127.9,3127.8,1.64664]
[1765624345094,0.00228365,3127.9,3127.8,1.64664]
[1765624345796,0.00228365,3127.9,3127.8,42.44664]
[1765624347997,5.0856,3128.5,3128.4,1.4868]
[1765624348300,1.4496,3128.2,3128.1,1.4868]
[1765624348495,0.7263,3127.9,3127.8,40.8]
[1765624348701,1.4496,3127.8,3127.7,3.2078]
[1765624348903,1.45307974,3127.8,3127.7,3.2078]
[1765624349498,1.45307974,3127.8,3127.7,3.9668]
[1765624350905,1.45307974,3127.8,3127.7,3.2078]
[1765624351801,1.45307974,3127.8,3127.7,3.9668]
[1765624352802,1.45307974,3127.8,3127.7,4.6946]
[1765624353998,0.00347974,3127.8,3127.7,4.6946]
[1765624354203,1.45307974,3127.8,3127.7,4.6946]
[1765624356204,1.4496,3127.6,3127.5,0.00480046]
[1765624356411,2.64876496,3127.6,3127.5,0.00480046]
[1765624358506,1.4496,3127.6,3127.5,1.49160046]
[1765624358704,0.00347974,3127.8,3127.7,1.4868]
[1765624360410,1.45307974,3127.8,3127.7,1.4868]
[1765624363007,0.72977974,3127.8,3127.7,1.4868]
[1765624363214,0.00347974,3127.8,3127.7,1.4868]
[1765624363513,0.00347974,3127.8,3127.7,2.84546839]
[1765624364402,0.72977974,3127.8,3127.7,2.84546839]
[1765624365712,0.00347974,3127.8,3127.7,2.84546839]
[1765624369115,1.45307974,3127.8,3127.7,0.15984]
[1765624369417,4.66087974,3127.8,3127.7,0.91884]
[1765624369719,4.66087974,3127.8,3127.7,0.15984]
[1765624377430,4.66087974,3127.8,3127.7,0.86994]
[1765624378225,4.66087974,3127.8,3127.7,1.61124]
[1765624378416,1.45307974,3127.8,3127.7,1.61124]
[1765624378617,1.45307974,3127.8,3127.7,0.86994]
[1765624378826,1.45307974,3127.8,3127.7,1.61124]
[1765624382229,0.72977974,3127.8,3127.7,1.61124]
[1765624383532,0.00347974,3127.8,3127.7,1.61124]
[1765624383730,0.75347974,3127.8,3127.7,1.61124]
[1765624385327,1.472,3127.6,3127.5,0.00480046]
[1765624385531,2.67082839,3127.6,3127.5,0.00480046]
[1765624387927,2.67082839,3127.6,3126.5,0.4578]
[1765624387928,6.442,3127.5,3126.5,0.4578]
[1765624388127,4.40725201,3126.6,3126.5,0.4578]
[1765624388332,4.40725201,3126.6,3126.5,1.1679]
[1765624388932,4.40725201,3126.6,3126.5,1.17075488]
[1765624389723,1.19945201,3126.6,3126.5,1.17075488]
[1765624391132,1.19945201,3126.6,3126.0,44.4656]
[1765624391133,2.39890402,3126.6,3126.0,0.4578]
[1765624391435,1.19945201,3126.2,3126.0,0.4578]
[1765624392036,1.19945201,3126.2,3126.0,0.46078835]
[1765624393944,3.2078,3126.3,3125.1,1.4514]
[1765624393945,2.39890402,3126.1,3125.1,1.4514]
[1765624394131,1.19945201,3125.2,3125.1,0.7413]
[1765624394330,1.19945201,3125.2,3125.1,1.4514]
[1765624394943,1.20211205,3125.2,3125.1,1.45543219]
[1765624395939,1.20366958,3125.2,3125.1,1.45543219]
[1765624397635,0.00266004,3125.2,3125.1,1.45543219]
[1765624398245,0.00266004,3125.2,3125.1,1.61541219]
[1765624398540,0.00266004,3125.2,3125.1,0.87411219]
[1765624398938,1.20366958,3125.2,3125.1,0.00403219]
[1765624401446,0.00266004,3125.2,3125.1,1.48573219]
[1765624401644,1.20366958,3125.2,3125.1,1.48573219]
[1765624402049,2.40467912,3125.2,3124.8,0.00480046]
[1765624402236,5.60981908,3124.9,3124.8,0.00480046]
[1765624402941,5.60981908,3124.9,3124.8,0.00886038]
[1765624406449,4.40880954,3124.9,3124.8,1.44316038]
[1765624407348,4.40880954,3124.9,3124.8,0.73276038]
[1765624407652,4.40880954,3124.9,3124.8,1.44316038]
[1765624409250,4.40880954,3124.9,3124.8,0.00886038]
[1765624409450,4.40880954,3124.9,3124.8,0.73976038]
[1765624409751,4.40880954,3124.9,3124.8,1.45016038]
[1765624410051,4.40880954,3124.9,3124.8,0.73976038]
[1765624411452,3.2078,3124.9,3124.8,1.45016038]
[1765624417452,4.40880954,3124.9,3124.8,0.00886038]
[1765624423563,6.58337968,3124.9,3124.8,0.00886038]
[1765624423762,5.38237014,3124.9,3124.8,0.00886038]
[1765624424265,6.58337968,3124.9,3124.8,0.00886038]
[1765624427567,5.38237014,3124.9,3124.8,0.73976038]
[1765624427762,4.1813606,3124.9,3124.8,1.45016038]
[1765624429572,5.38237014,3124.9,3124.8,1.45016038]
[1765624430563,4.1813606,3124.9,3124.8,1.45016038]
[1765624430768,5.38237014,3124.9,3124.8,1.45016038]
[1765624431861,5.23246773,3124.9,3124.8,1.45016038]
[1765624433369,4.25890713,3124.9,3124.8,1.45016038]
[1765624435570,3.2078,3124.9,3124.8,1.45016038]
[1765624441579,3.2078,3124.9,3124.8,0.00886038]
[1765624447993,4.25907905,3124.9,3124.8,0.00886038]
[1765624448597,4.25907905,3124.9,3124.8,0.72266038]
[1765624449692,4.25907905,3124.9,3124.8,0.00886038]
[1765624451494,1.05127905,3124.9,3124.8,0.00886038]
[1765624451794,4.25907905,3124.9,3124.8,0.00886038]
[1765624463100,4.25907905,3124.9,3124.8,0.72096038]
[1765624464302,4.25907905,3124.9,3124.8,0.00886038]
[1765624464901,0.00266004,3125.2,3125.1,1.4388]
[1765624465099,0.00266004,3125.2,3125.1,2.65005905]
[1765624465308,0.00266004,3125.2,3125.1,1.59878]
[1765624477112,0.00266004,3125.2,3125.1,0.15998]
[1765624477409,0.00266004,3125.2,3125.1,1.59878]
[1765624490913,0.00266004,3125.2,3125.1,42.39878]
[1765624498218,0.00266004,3125.2,3125.1,57.24678]
[1765624501722,0.00266004,3125.2,3125.1,42.39878]
[1765624501922,0.00266004,3125.2,3125.1,57.24578]
[1765624503512,0.00480046,3125.3,3125.1,57.24578]
[1765624503718,3.2078,3125.7,3125.6,1.5111]
[1765624504827,3.21141148,3125.7,3125.6,1.5111]
[1765624511031,0.00361148,3125.7,3125.6,1.5111]
[1765624519139,1.20412324,3125.7,3125.6,1.5111]
[1765624519334,2.404635,3125.7,3125.5,0.4503]
[1765624519939,1.20412324,3125.7,3125.5,0.4503]
[1765624520440,1.20051176,3125.6,3125.5,0.4503]
[1765624524042,1.20051176,3125.6,3125.0,1.1639]
[1765624524345,4.40831176,3125.1,3125.0,1.8952]
[1765624524736,4.40831176,3125.1,3125.0,0.4352]
[1765624527044,4.40831176,3125.1,3124.8,0.00886038]
[1765624527338,2.40102352,3124.9,3124.8,0.00886038]
[1765624527739,1.20051176,3124.9,3124.8,0.00886038]
[1765624530443,2.40102352,3124.9,3124.8,0.00886038]
[1765624531946,5.60882352,3124.9,3124.8,0.00886038]
[1765624538053,3.2078,3124.9,3124.8,1.45246038]
[1765624538647,3.2078,3125.3,3124.8,2.81296214]
[1765624538850,4.40831176,3125.3,3125.2,1.4436]
[1765624539252,5.16181176,3125.3,3125.2,1.4436]
[1765624539451,5.012179,3125.3,3125.2,1.4436]
[1765624541750,5.780579,3125.3,3125.2,1.4436]
[1765624542754,5.780579,3125.3,3125.2,0.696]
[1765624543650,4.258679,3125.3,3125.0,0.4259]
[1765624543855,1.5219,3124.9,3124.8,1.61245038]
[1765624545757,2.572779,3124.9,3124.8,1.61245038]
[1765624553756,2.572779,3124.9,3124.8,0.16885038]
[1765624558657,1.4642,3124.6,3124.5,4.6721]
[1765624558862,1.4642,3124.9,3124.8,0.7403]
[1765624559065,1.4642,3124.9,3124.8,1.4643]
[1765624559066,2.515079,3124.9,3124.8,1.4643]
[1765624559261,2.515079,3124.9,3124.5,3.6397]
[1765624559262,1.4642,3124.6,3124.5,5.104]
[1765624559559,1.4642,3124.6,3124.5,5.10707846]
[1765624560759,2.515079,3124.6,3124.5,5.10707846]
[1765624562065,1.778579,3124.6,3124.5,5.10707846]
[1765624562862,0.7277,3125.0,3124.9,1.4643]
[1765624563057,1.778579,3125.0,3124.9,1.4643]
[1765624564858,1.050879,3125.0,3124.9,1.4643]
[1765624565260,3.9355,3125.2,3125.1,1.4643]
[1765624565467,4.986379,3125.2,3125.1,1.4643]
[1765624565767,5.722879,3125.2,3125.1,1.4643]
[1765624566065,5.722879,3125.2,3124.5,3.80278846]
[1765624566265,2.515079,3124.9,3124.8,1.4643]
[1765624566864,1.778579,3125.1,3125.0,1.4643]
[1765624567067,3.9355,3125.2,3125.1,1.4643]
[1765624567265,5.722879,3125.2,3125.1,1.4643]
[1765624567568,5.722879,3125.2,3125.1,0.7403]
[1765624568569,5.722879,3125.2,3125.1,1.4643]
[1765624568970,2.515079,3125.2,3125.1,1.4643]
[1765624569872,1.4642,3125.2,3125.1,1.4643]
[1765624573462,0.7277,3125.2,3125.1,1.4643]
[1765624573665,4.98645694,3125.3,3125.2,1.4643]
[1765624574470,5.72295694,3125.3,3125.2,0.7403]
[1765624574973,5.72295694,3125.3,3125.2,1.4643]
[1765624575173,5.72294678,3125.3,3125.2,1.4643]
[1765624575665,2.51514678,3125.3,3125.2,1.4643]
[1765624576371,2.51514678,3125.3,3125.2,0.7403]
[1765624581474,1.05094678,3125.6,3125.5,1.4643]
[1765624581662,2.51514678,3125.6,3125.5,1.8962]
[1765624583480,2.51514678,3125.6,3125.5,1.4643]
[1765624583663,2.51514678,3125.6,3125.5,0.7403]
[1765624584380,2.51514678,3125.6,3125.5,1.4643]
[1765624585675,2.51514678,3125.6,3125.5,1.9178]
[1765624585985,0.76231148,3125.7,3125.6,1.4715]
[1765624586171,1.46291148,3125.7,3125.6,1.4715]
[1765624586883,0.00361148,3125.7,3125.6,1.4715]
[1765624588585,0.76231148,3125.7,3125.6,1.4715]
[1765624595580,1.46291148,3125.7,3125.6,1.4715]
[1765624595886,0.76231148,3125.7,3125.6,1.4715]
[1765624596790,0.00361148,3125.7,3125.6,1.63145]
[1765624598191,1.46291148,3125.7,3125.6,1.63145]
[1765624600791,1.46291148,3125.7,3125.6,0.15995]
[1765624602993,1.46291148,3125.7,3125.6,0.86165]
[1765624603393,1.46291148,3125.7,3125.6,1.63145]
[1765624608999,0.76231148,3125.7,3125.6,1.63145]
[1765624609393,1.46291148,3125.7,3125.6,1.63145]
[1765624626007,1.46291148,3125.7,3125.6,1.4715]
[1765624628312,1.883,3125.5,3125.4,4.6354]
[1765624628615,1.4594,3125.5,3125.4,4.6354]
[1765624630309,0.7631,3125.5,3125.4,4.6354]
[1765624630513,1.46301148,3125.7,3125.6,1.4276]
[1765624631914,2.66366124,3125.7,3125.6,1.4276]
[1765624632709,0.76671148,3125.7,3125.6,1.4276]
[1765624632908,0.00361148,3125.7,3125.6,1.4276]
[1765624633107,0.00480046,3126.0,3125.9,1.4276]
[1765624634110,0.00766548,3126.0,3125.9,1.4276]
[1765624639616,0.00766548,3126.0,3125.9,2.62824976]
[1765624640018,0.00766548,3126.0,3125.9,1.4276]
[1765624642220,1.53466548,3126.0,3125.9,1.4276]
[1765624642523,0.77706548,3126.0,3125.9,1.4276]
[1765624642720,1.527,3125.4,3125.3,4.7047]
[1765624642923,2.72764976,3125.4,3125.3,4.7047]
[1765624643820,1.20064976,3125.6,3125.5,1.9377]
[1765624644025,1.97004976,3125.6,3125.5,1.9377]
[1765624646123,2.67204976,3125.6,3125.5,1.9377]
[1765624646422,1.97004976,3125.6,3125.5,1.9377]
[1765624646621,1.97007904,3125.6,3125.5,1.9377]
[1765624647826,2.67207904,3125.6,3125.5,1.9377]
[1765624651023,2.67207904,3125.6,3125.5,0.7273]
[1765624651525,2.67207904,3125.6,3125.5,1.4987]
[1765624657230,2.67207904,3125.6,3125.5,1.9345]
[1765624670336,2.67207904,3125.6,3125.5,1.4987]
[1765624671642,1.4714,3125.6,3125.5,1.4987]
[1765624671837,2.67207904,3125.6,3125.5,1.4987]
[1765624676945,2.67207904,3125.6,3125.5,0.7273]
[1765624681448,2.67207904,3125.6,3125.5,1.4955]
[1765624681841,2.672261,3125.6,3125.5,1.4955]
[1765624682147,1.970261,3125.6,3125.5,1.9352]
[1765624682647,2.675461,3125.6,3125.5,1.9352]
[1765624684650,1.4289,3125.3,3125.2,4.7166]
[1765624684946,1.924561,3125.3,3125.2,4.7166]
[1765624685151,2.629761,3125.3,3125.2,4.7166]
[1765624686950,1.924561,3125.3,3125.2,4.7166]
[1765624690957,2.629761,3125.3,3125.2,3.2078]
[1765624691258,2.629761,3125.3,3125.2,4.7166]
[1765624691259,1.924561,3125.3,3125.2,4.7166]
[1765624691958,1.200861,3125.3,3125.2,4.7166]
[1765624692357,2.629761,3125.5,3125.4,1.5088]
[1765624692857,1.4289,3125.4,3125.3,15.5796]
[1765624693055,2.629761,3125.4,3125.3,15.5796]
[1765624693254,2.629761,3125.4,3125.3,16.3478]
[1765624693954,1.4289,3125.4,3125.3,16.3478]
[1765624695950,0.7237,3125.4,3125.3,16.3478]
[1765624696661,2.62986085,3125.6,3125.5,1.9485]
[1765624697160,3.63496548,3126.0,3125.5,1.9485]
[1765624697362,2.62986085,3125.8,3125.7,1.5088]
[1765624697863,1.4289,3125.3,3125.2,4.7166]
[1765624698161,0.7237,3125.3,3125.2,4.7166]
[1765624698764,1.4289,3125.3,3125.2,4.7166]
[1765624699361,1.4289,3125.3,3125.2,3.2078]
[1765624699659,1.4289,3125.3,3125.2,2.96547156]
[1765624699860,0.7052,3124.9,3124.8,3.9484]
[1765624700068,2.62986085,3124.9,3124.8,3.9484]
[1765624701165,2.62986085,3124.9,3124.8,4.7166]
[1765624702969,1.92466085,3125.2,3125.1,1.5088]
[1765624705459,1.411,3125.5,3125.4,1.4065]
[1765624705762,0.7016,3125.5,3125.4,1.4065]
[1765624706272,1.90256085,3125.6,3125.5,1.8428]
[1765624707275,2.61196085,3125.9,3125.8,1.4065]
[1765624717377,2.61174492,3125.9,3125.8,1.4065]
[1765624718176,2.61174492,3125.9,3125.8,0.7031]
[1765624718487,0.7016,3125.6,3125.5,0.4363]
[1765624718770,1.411,3125.6,3125.5,1.8428]
[1765624723484,2.61174492,3125.9,3125.8,1.4065]
[1765624724185,0.00766548,3126.0,3125.9,1.4065]
[1765624724981,1.41866548,3126.0,3125.9,1.4065]
[1765624725372,1.41866548,3126.0,3125.9,0.7031]
[1765624725784,1.41866548,3126.0,3125.9,1.4065]
[1765624727981,1.81166548,3126.0,3125.9,0.7031]
[1765624728883,3.0124104,3126.0,3125.9,0.7031]
[1765624735184,3.0124104,3126.0,3125.5,0.59626]
[1765624735685,0.7079,3125.6,3125.5,2.09406]
[1765624735887,0.7079,3125.6,3125.5,5.30186]
[1765624737088,1.6014104,3126.0,3125.5,5.30186]
[1765624737788,0.7079,3125.6,3125.5,5.30186]
[1765624738288,1.6014104,3126.0,3125.5,5.30186]
[1765624740488,0.7079,3125.6,3125.5,5.30186]
[1765624740688,1.4642,3125.6,3125.5,5.30186]
[1765624741192,0.7079,3125.6,3125.5,5.30186]
[1765624741692,1.6014104,3126.0,3125.5,5.30186]
[1765624741891,1.86486548,3126.0,3125.9,0.7312]
[1765624742288,1.47186548,3126.0,3125.9,1.4978]
[1765624743391,0.00766548,3126.0,3125.9,1.4978]
[1765624748894,0.00766548,3126.0,3125.9,4.7056]
[1765624757692,0.00766548,3126.0,3125.9,1.4978]
[1765624757898,1.47186548,3126.0,3125.9,1.4978]
[1765624759198,0.71556548,3126.0,3125.9,1.4978]
[1765624759497,1.47186548,3126.0,3125.9,1.4978]
[1765624761201,0.00766548,3126.0,3125.9,1.4978]
[1765624762300,0.73526548,3126.0,3125.9,1.4978]
[1765624764303,0.00766548,3126.0,3125.9,1.4978]
[1765624765003,0.73526548,3126.0,3125.9,1.4978]
[1765624767704,0.00766548,3126.0,3125.9,1.4978]
[1765624767904,0.77286548,3126.0,3125.9,1.4978]
[1765624772209,0.00766548,3126.0,3125.9,1.4978]
[1765624776116,0.77286548,3126.0,3125.9,1.4978]
[1765624782504,1.48226548,3126.0,3125.9,1.4978]
[1765624783119,0.77286548,3126.0,3125.9,1.4978]
[1765624785906,1.48226548,3126.0,3125.9,1.4978]
[1765624787418,0.77286548,3126.0,3125.9,1.4978]
[1765624787718,1.48226548,3126.0,3125.9,1.4978]
[1765624788716,0.00766548,3126.0,3125.9,1.4978]
[1765624789422,0.00766548,3126.0,3125.9,42.2978]
[1765624792020,0.00766548,3126.0,3125.9,1.4978]
[1765624803745,0.00766548,3126.0,3125.9,1.65774]
[1765624809052,0.00766548,3126.0,3125.9,1.35774]
[1765624809553,0.00766548,3126.0,3125.9,1.05774]
[1765624810052,0.00766548,3126.0,3125.9,0.75774]
[1765624810349,0.00766548,3126.0,3125.9,1.48334]
[1765624812043,0.00766548,3126.0,3125.9,16.31534]
[1765624813147,0.00766548,3126.0,3125.9,16.01534]
[1765624813853,0.00766548,3126.0,3125.9,15.71534]
[1765624814054,0.00766548,3126.0,3125.9,16.42984]
[1765624814354,0.00766548,3126.0,3125.9,16.12984]
[1765624814554,0.00766548,3126.0,3125.9,16.28978]
[1765624814754,3.13052025,3126.0,3125.9,1.15778]
[1765624815955,3.13085773,3126.0,3125.9,1.17588]
[1765624818159,3.13085773,3126.0,3125.9,0.15994]
[1765624818359,3.13085773,3126.0,3125.9,0.47804]
[1765624823464,3.13085773,3126.0,3125.9,0.15994]
[1765624825064,1.5137,3125.8,3125.7,3.5263]
[1765624825263,1.5137,3125.8,3125.7,2.88605397]
[1765624825465,0.4244,3125.5,3125.3,3.5264]
[1765624825667,2.50059927,3125.4,3125.3,3.5264]
[1765624826165,2.50059927,3125.4,3125.3,3.2078]
[1765624832469,0.6999,3124.9,3124.8,3.845]
[1765624833374,1.4497,3124.9,3124.8,3.845]
[1765624833968,1.4497,3124.9,3124.8,3.5264]
[1765624834571,1.4497,3124.9,3124.8,3.845]
[1765624834868,1.1243,3125.0,3124.9,0.6372]
[1765624835172,1.8741,3125.0,3124.9,0.6372]
[1765624838577,0.4244,3125.0,3124.9,0.6372]
[1765624839879,1.1243,3125.0,3124.9,0.6372]
[1765624841879,1.8741,3125.0,3124.9,0.6372]
[1765624842980,1.8741,3125.0,3124.9,0.3186]
[1765624843179,1.4497,3124.8,3124.7,3.6864]
[1765624845574,1.4497,3124.8,3124.7,0.4786]
[1765624845776,1.4497,3124.8,3124.7,3.6864]
[1765624846782,1.4497,3124.8,3124.7,3.3678]
[1765624847285,1.4497,3124.8,3124.7,4.005]
[1765624848483,1.4497,3124.8,3124.7,3.6864]
[1765624848682,1.4497,3124.8,3124.7,4.005]
[1765624851783,1.4497,3124.8,3124.7,3.6864]
[1765624854388,1.4497,3124.8,3124.7,0.4786]
[1765624857687,1.4635,3124.6,3124.5,0.32237846]
[1765624857889,2.51439927,3124.6,3124.5,0.32237846]
[1765624860091,1.4635,3124.6,3124.5,0.32237846]
[1765624860686,1.4635,3124.6,3124.5,0.64167846]
[1765624861288,2.51493604,3124.6,3124.5,0.64167846]
[1765624862892,1.05143604,3124.7,3124.6,0.6386]
[1765624863086,1.8879,3125.0,3124.9,0.6386]
[1765624863990,1.1659,3125.0,3124.9,0.6386]
[1765624866489,1.8879,3125.0,3124.9,0.6386]
[1765624872390,1.1659,3125.0,3124.9,0.6386]
[1765624872792,1.8879,3125.0,3124.9,0.6386]
[1765624873899,1.1659,3125.0,3124.9,0.6386]
[1765624875807,1.8879,3125.0,3124.9,0.6386]
[1765624876007,2.93891397,3125.0,3124.9,0.6386]
[1765624876307,2.93891397,3125.0,3124.9,0.3193]
[1765624879920,1.4635,3124.8,3124.7,0.4793]
[1765624880218,2.51451397,3124.8,3124.7,0.4793]
[1765624883123,2.51451397,3124.8,3124.7,0.7986]
[1765624883516,1.8879,3125.0,3124.9,0.6386]
[1765624883719,1.8879,3125.0,3124.9,1.84960397]
[1765624883720,0.4244,3125.0,3124.9,1.84960397]
[1765624884027,3.9493,3125.3,3125.2,0.6386]
[1765624884215,3.9493,3125.3,3125.2,1.68961397]
[1765624884524,3.2078,3125.3,3125.2,1.84958397]
[1765624886614,3.9052,3125.3,3125.2,0.79857]
[1765624888419,0.6974,3125.3,3125.2,0.79857]
[1765624896622,1.3979,3125.3,3125.2,0.79857]
[1765624900632,1.3979,3125.3,3125.2,0.47927]
[1765624901032,1.3979,3125.3,3125.2,0.79807]
[1765624901333,1.3979,3125.3,3125.2,0.47927]
[1765624901634,1.3979,3125.3,3125.2,0.79807]
[1765624903134,1.3979,3125.3,3125.2,0.47927]
[1765624903932,1.3979,3124.6,3124.5,3.68967846]
[1765624904127,2.59863393,3124.6,3124.5,3.37087846]
[1765624904328,2.59863393,3124.6,3124.2,0.00480046]
[1765624904329,1.3979,3124.3,3124.2,0.00480046]
[1765624904536,2.59863393,3124.3,3124.2,0.00480046]
[1765624905332,2.59863393,3124.3,3124.2,0.00735851]
[1765624905837,1.3979,3123.3,3123.2,4.8998325]
[1765624906634,1.3979,3123.3,3123.2,4.9035492]
[1765624906934,2.60157059,3123.3,3123.2,3.9449167]
[1765624907139,2.60157059,3123.3,3123.2,0.7371167]
[1765624907440,2.60157059,3123.3,3123.2,1.4343167]
[1765624907441,1.40083666,3123.3,3123.2,1.4343167]
[1765624907636,1.40083666,3123.3,3123.2,0.7371167]
[1765624907936,1.40083666,3123.3,3123.2,1.4343167]
[1765624908331,2.60157059,3123.3,3123.2,0.7371167]
[1765624908533,1.40083666,3123.3,3123.2,1.4343167]
[1765624910841,0.70033666,3123.3,3123.2,1.4343167]
[1765624911540,1.40083666,3123.3,3123.2,1.4343167]
[1765624912338,0.00293666,3123.3,3123.2,1.5943867]
[1765624913541,0.70033666,3123.3,3123.2,1.5943867]
[1765624913842,1.40083666,3123.3,3123.2,1.5943867]
[1765624915339,1.40083666,3123.3,3123.2,0.9020867]
[1765624915540,1.40083666,3123.3,3123.2,1.6585867]
[1765624921142,1.40083666,3123.3,3123.2,0.1637867]
[1765624921642,2.60157059,3123.3,3123.2,0.0037167]
[1765624921951,1.4473,3122.9,3122.8,3.2078]
[1765624922146,2.64803393,3122.9,3122.8,3.2078]
[1765624922847,2.64803393,3122.9,3122.8,3.21058843]
[1765624923142,2.64803393,3122.9,3122.8,3.94888843]
[1765624924251,2.64803393,3122.9,3122.8,4.70538843]
[1765624924854,2.64803393,3122.9,3122.8,4.96245534]
[1765624925050,0.00293666,3123.3,3123.2,1.4948]
[1765624925365,0.00293666,3123.3,3123.2,2.85560393]
[1765624926048,1.20073393,3123.9,3123.4,1.65486]
[1765624926252,3.2078,3124.1,3123.5,2.10496]
[1765624926448,1.20073393,3124.0,3123.5,2.10496]
[1765624926644,3.2078,3124.1,3123.5,2.10496]
[1765624926845,1.20073393,3124.0,3123.5,2.10496]
[1765624927043,0.00752093,3123.6,3123.5,2.10496]
[1765624927452,0.00752093,3123.6,3123.5,3.30569393]
[1765624929457,0.75052093,3123.6,3123.5,3.30569393]
[1765624929854,1.45482093,3123.6,3123.5,3.30569393]
[1765624930456,0.75052093,3123.6,3123.5,3.30569393]
[1765624931557,0.00752093,3123.6,3123.5,3.30569393]
[1765624932260,0.00752093,3123.6,3123.5,3.15653557]
[1765624934062,0.00752093,3123.6,3123.5,2.10496]
[1765624934260,0.00752093,3123.6,3123.5,3.15653557]
[1765624936262,0.00752093,3123.6,3123.5,43.95653557]
[1765624936763,0.00752093,3123.6,3123.5,42.90496]
[1765624937455,0.00752093,3123.6,3123.5,2.10496]
[1765624937963,0.00752093,3123.6,3123.5,3.15650273]
[1765624940661,0.00752093,3123.6,3123.5,18.00350273]
[1765624946668,0.00752093,3123.6,3123.5,16.95196]
[1765624946966,0.00752093,3123.6,3123.5,18.00350273]
[1765624947169,0.75342093,3123.6,3123.5,16.94996]
[1765624948267,0.75342093,3123.6,3123.5,2.10496]
[1765624948570,0.75342093,3123.6,3123.5,16.94996]
[1765624949074,0.75342093,3123.6,3123.5,2.10496]
[1765624949272,0.75342093,3123.6,3123.5,16.94896]
[1765624949674,0.00752093,3123.6,3123.5,16.94896]
[1765624951880,0.00752093,3123.6,3123.5,3.15650273]
[1765624952177,0.00752093,3123.6,3123.5,18.00050273]
[1765624954775,3.2078,3124.1,3124.0,1.8744]
[1765624955077,4.6964,3124.1,3124.0,1.8744]
[1765624955874,4.69998597,3124.1,3124.0,1.8744]
[1765624956478,4.69998597,3124.1,3124.0,2.03443]
[1765624956882,3.21138597,3124.1,3124.0,2.03443]
[1765624957073,0.00358597,3124.1,3124.0,2.03443]
[1765624957780,1.49218597,3124.1,3124.0,2.03443]
[1765624958377,1.49218597,3124.1,3124.0,16.87743]
[1765624959181,0.74948597,3124.1,3124.0,16.87743]
[1765624961383,0.00358597,3124.1,3124.0,16.87743]
[1765624962586,0.74948597,3124.1,3124.0,16.87743]
[1765624969087,0.00358597,3124.1,3124.0,16.87743]
[1765624980396,3.2078,3124.5,3124.4,1.4943]
[1765624980597,4.6141,3124.9,3124.8,1.4943]
[1765624981297,4.6141,3124.9,3124.8,0.7354]
[1765624981501,4.61801569,3124.9,3124.8,0.7354]
[1765624983104,3.91391569,3124.9,3124.8,1.4943]
[1765624986404,4.61801569,3124.9,3124.8,1.4943]
[1765624986606,4.61801569,3124.9,3124.8,0.7354]
[1765624991209,1.4063,3124.8,3124.7,0.8954]
[1765624991908,1.4063,3124.8,3124.7,1.6543]
[1765624992606,1.4063,3124.8,3124.7,0.8954]
[1765624993810,1.4063,3124.8,3124.7,1.6543]
[1765624994208,1.4063,3124.8,3124.7,0.16]
[1765624994912,1.4063,3124.8,3124.7,0.8954]
[1765624995512,1.4063,3124.8,3124.7,0.16]
[1765624995704,1.4063,3124.8,3124.7,1.6543]
[1765624998017,2.45746044,3124.8,3124.7,0.8954]
[1765624998208,2.45746044,3124.8,3124.7,0.16]
[1765625000211,1.4063,3124.2,3124.1,0.16003]
[1765625000415,1.4063,3124.2,3124.1,0.89543]
[1765625001211,0.7022,3124.2,3124.1,1.61883]
[1765625001520,4.6751,3124.5,3124.4,1.482]
[1765625005115,4.6751,3124.5,3124.4,0.7586]
[1765625005318,4.6751,3124.5,3124.4,1.5155]
[1765625006719,5.72641999,3124.5,3124.4,1.5155]
[1765625007428,4.6751,3124.5,3124.4,1.5155]
[1765625007631,5.72641999,3124.5,3124.4,1.5155]
[1765625007930,5.72641999,3124.5,3124.4,0.7586]
[1765625008115,6.15551999,3124.5,3124.4,0.7586]
[1765625010332,1.4726,3124.3,3124.2,1.63122]
[1765625010933,2.52391999,3124.3,3124.2,1.63122]
[1765625012436,0.7464,3124.3,3124.2,1.63122]
[1765625012733,1.4726,3124.3,3124.2,1.63122]
[1765625013130,2.52391999,3124.3,3124.2,0.87432]
[1765625013333,2.52391999,3124.3,3124.2,1.63122]
[1765625013834,2.52391999,3124.3,3124.2,0.87432]
[1765625014337,2.52391999,3124.3,3124.2,1.63122]
[1765625017942,1.4726,3124.3,3124.2,1.63122]
[1765625021243,0.7464,3124.3,3124.2,1.63122]
[1765625021635,2.52391999,3124.7,3124.6,0.7143]
[1765625022946,2.52391999,3124.7,3124.2,0.16002]
[1765625023934,2.52391999,3124.7,3124.6,0.7143]
[1765625024245,2.52391999,3124.7,3124.3,0.16002]
[1765625024246,1.4726,3124.4,3124.3,1.63122]
[1765625024435,1.4726,3124.4,3124.3,0.16002]
[1765625024839,1.4726,3123.9,3123.8,3.92690046]
[1765625025139,2.52391999,3123.9,3123.8,0.00480046]
[1765625025736,1.9017,3123.5,3123.4,3.2078]
[1765625025942,2.95301999,3123.5,3123.4,3.2078]
[1765625026748,2.43299181,3123.5,3123.4,3.2078]
[1765625027745,2.00389181,3123.5,3123.4,3.2078]
[1765625028646,2.00389181,3123.5,3123.4,3.9221]
[1765625028844,2.00389181,3123.5,3123.4,4.679]
[1765625029354,2.52391999,3123.7,3123.6,1.4712]
[1765625029547,5.73171999,3124.0,3123.9,1.4712]
[1765625030156,5.73171999,3124.0,3123.9,0.7143]
[1765625034654,5.73171999,3124.0,3123.5,1.64777999]
[1765625034855,2.51261999,3123.8,3123.7,0.698]
[1765625035051,1.4613,3123.6,3123.5,0.59646]
[1765625035246,2.51261999,3123.6,3123.5,0.59646]
[1765625035443,2.51261999,3123.6,3123.5,1.29446]
[1765625036155,2.51261999,3123.6,3123.5,2.03986]
[1765625037258,1.4613,3123.6,3123.5,2.03986]
[1765625037554,0.7047,3123.6,3123.5,2.03986]
[1765625037757,1.4613,3123.6,3123.5,2.03986]
[1765625039251,1.4613,3123.6,3123.5,1.29446]